[Event "95th Caplin Hastings Congress"]
[Site "Hastings"]
[Date "2019.12.30"]
[Round "3.59"]
[White "Cresswell, Mike J"]
[Black "Stoyanov, Boris"]
[Result "1/2-1/2"]
[ECO "B34"]
[WhiteElo "1662"]
[BlackElo "1504"]
[Annotator "NA"]
[PlyCount "39"]
[EventDate "2019.12.28"]
[EventType "swiss"]
[EventCountry "ENG"]
[SourceTitle "playchess.com"]
[Source "ChessBase"]
[SourceQuality "1"]
[TimeControl "40/6600+30:3000+30"]

1. e4 {[%emt 0:09:35]} c5 {[%emt 0:09:33]} 2. Nf3 {[%emt 0:00:06]} g6 {[%emt 0:00:04]} 3. c3 {[%emt 0:00:57]} Bg7 {[%emt 0:00:09]} 4. d4 {[%emt 0:01:27]} cxd4 {[%emt 0:00:09]} 5. Nxd4 {[%emt 0:00:14]} Nc6 {[%emt 0:00:20]} 6. Be3 {[%emt 0:01:36]} Nf6 {[%emt 0:03:02]} 7. Nd2 {[%emt 0:01:41]} O-O {[%emt 0:00:33]} 8. Be2 {[%emt 0:01:33]} d5 {[%emt 0:02:19]} 9. Nxc6 {[%emt 0:06:23]} bxc6 {[%emt 0:00:13]} 10. e5 {[%emt 0:00:18]} Ne8 {[%emt 0:05:04]} 11. f4 {[%emt 0:02:39]} f6 {[%emt 0:00:28]} 12. Nf3 {[%emt 0:02:00]} Qc7 {[%emt 0:04:08]} 13. exf6 {[%emt 0:08:36]} Nxf6 {[%emt 0:03:26]} 14. Nd4 {[%emt 0:00:59]} Ne4 {[%emt 0:06:38]} 15. O-O {[%emt 0:04:18]} Bd7 {[%emt 0:09:07]} 16. Bg4 {[%emt 0:06:30]} Rab8 {[%emt 0:04:07]} 17. Bxd7 {[%emt 0:05:39]} Qxd7 {[%emt 0:01:13]} 18. Rb1 {[%emt 0:01:13]} Rb7 {[%emt 0:11:14]} 19. Qc2 {[%emt 0:05:28]} e6 {[%emt 0:06:07]} 20. Nf3 {[%emt 0:05:23]} 1/2-1/2

[Event "95th Caplin Hastings Congress"]
[Site "Hastings"]
[Date "2019.12.30"]
[Round "3.60"]
[White "Dewangan, Aayush"]
[Black "Thatte, Nandinee"]
[Result "0-1"]
[ECO "B13"]
[WhiteElo "1548"]
[BlackElo "1270"]
[Annotator "NA"]
[PlyCount "152"]
[EventDate "2019.12.28"]
[EventType "swiss"]
[EventCountry "ENG"]
[SourceTitle "playchess.com"]
[Source "ChessBase"]
[SourceQuality "1"]
[TimeControl "40/6600+30:3000+30"]

1. e4 {[%emt 1:30:39]} c6 {[%emt 0:00:08]} 2. d4 {[%emt 0:00:10]} d5 {[%emt 0:00:07]} 3. exd5 {[%emt 0:00:15]} cxd5 {[%emt 0:00:09]} 4. Bd3 {[%emt 0:00:10]} Nc6 {[%emt 0:00:13]} 5. c3 {[%emt 0:00:12]} Qc7 {[%emt 0:00:19]} 6. h3 {[%emt 0:00:23]} Nf6 {[%emt 0:00:32]} 7. Nf3 {[%emt 0:00:18]} g6 {[%emt 0:00:24]} 8. O-O {[%emt 0:00:19]} Bf5 {[%emt 0:00:27]} 9. Na3 {[%emt 0:01:29]} Bxd3 {[%emt 0:01:04]} 10. Qxd3 {[%emt 0:00:08]} Bg7 {[%emt 0:02:04]} 11. Bg5 {[%emt 0:01:28]} O-O {[%emt 0:02:14]} 12. Rac1 {[%emt 0:01:10]} Rad8 {[%emt 0:14:00]} 13. Rfe1 {[%emt 0:02:43]} Ne4 {[%emt 0:12:04]} 14. Be3 {[%emt 0:03:57]} a6 {[%emt 0:11:48]} 15. Nd2 {[%emt 0:01:45]} f5 {[%emt 0:06:18]} 16. Nxe4 {[%emt 0:06:31]} fxe4 {[%emt 0:01:53]} 17. Qd2 {[%emt 0:00:34]} e6 {[%emt 0:05:57]} 18. Bg5 {[%emt 0:01:03]} Rd7 {[%emt 0:04:33]} 19. Bh6 {[%emt 0:05:42]} Rdf7 {[%emt 0:04:07]} 20. Rf1 {[%emt 0:02:32]} Qb6 {[%emt 0:04:45]} 21. Bxg7 {[%emt 0:04:45]} Kxg7 {[%emt 0:01:01]} 22. Rb1 {[%emt 0:02:44]} Ne7 {[%emt 0:03:22]} 23. Nc2 {[%emt 0:01:59]} Nf5 {[%emt 0:02:28]} 24. Ne3 {[%emt 0:00:22]} h5 {[%emt 0:06:23]} 25. Nc2 {[%emt 0:02:34]} Qd8 {[%emt 0:02:18]} 26. b3 {[%emt 0:04:20]} Qf6 {[%emt 0:04:03]} 27. c4 {[%emt 0:02:46]} Nh4 {[%emt 0:03:31]} 28. Qe3 {[%emt 0:02:31]} Rc8 {[%emt 0:03:10]} 29. c5 {[%emt 0:00:43]} Nf5 {[%emt 0:01:25]} 30. Qd2 {[%emt 0:06:55]} g5 {[%emt 0:03:55]} 31. g3 {[%emt 0:07:29]} Rh8 {[%emt 0:03:32]} 32. b4 {[%emt 0:06:42]} Ra8 {[%emt 0:01:48]} 33. a4 {[%emt 0:05:37]} Rc7 {[%emt 0:01:10]} 34. Ra1 {[%emt 0:02:37]} Rf7 {[%emt 0:00:58]} 35. b5 {[%emt 0:02:32]} Rc7 {[%emt 0:01:20]} 36. b6 {[%emt 0:02:29]} Rcc8 {[%emt 0:01:09]} 37. Rab1 {[%emt 0:01:06]} Kg6 {[%emt 0:01:18]} 38. Rb3 {[%emt 0:00:13]} Ne7 {[%emt 0:00:39]} 39. f3 {[%emt 0:01:30]} Rf8 {[%emt 0:01:06]} 40. Ne3 {[%emt 0:01:34]} exf3 {[%emt 0:01:49]} 41. Nd1 {[%emt 0:00:29]} g4 {[%emt 0:04:50]} 42. h4 {[%emt 0:00:29]} Rac8 {[%emt 0:06:53]} 43. Nf2 {[%emt 0:03:44]} Nf5 {[%emt 0:03:59]} 44. Qf4 {[%emt 0:10:43]} Nxd4 {[%emt 0:03:06]} 45. Qxf6+ {[%emt 0:01:11]} Kxf6 {[%emt 0:02:02]} 46. Rb4 {[%emt 0:00:59]} Ne2+ {[%emt 0:01:37]} 47. Kh2 {[%emt 0:00:10]} Rxc5 {[%emt 0:00:40]} 48. Nd3 {[%emt 0:00:45]} Rc4 {[%emt 0:01:50]} 49. Rxc4 {[%emt 0:00:46]} dxc4 {[%emt 0:00:06]} 50. Nc5 {[%emt 0:00:11]} Ke7 {[%emt 0:03:23]} 51. Nxb7 {[%emt 0:00:21]} Rb8 {[%emt 0:00:18]} 52. Na5 {[%emt 0:01:07]} Rxb6 {[%emt 0:01:25]} 53. Nxc4 {[%emt 0:01:08]} Rb4 {[%emt 0:01:07]} 54. Ne5 {[%emt 0:00:37]} Rxa4 {[%emt 0:00:29]} 55. Rb1 {[%emt 0:00:14]} Ra2 {[%emt 0:05:46]} 56. Nd3 {[%emt 0:01:38]} Nc3+ {[%emt 0:01:21]} 57. Rb2 {[%emt 0:00:02]} Rxb2+ {[%emt 0:00:14]} 58. Nxb2 {[%emt 0:00:06]} a5 {[%emt 0:00:50]} 59. Kg1 {[%emt 0:00:06]} a4 {[%emt 0:00:36]} 60. Nc4 {[%emt 0:00:17]} Kf6 {[%emt 0:00:56]} 61. Kf2 {[%emt 0:00:12]} e5 {[%emt 0:01:09]} 62. Ke3 {[%emt 0:00:15]} Nd5+ {[%emt 0:02:31]} 63. Kf2 {[%emt 0:00:33]} e4 {[%emt 0:00:40]} 64. Na3 {[%emt 0:00:29]} e3+ {[%emt 0:00:52]} 65. Kf1 {[%emt 0:00:12]} Kf5 {[%emt 0:00:38]} 66. Nc2 {[%emt 0:00:09]} Ke4 {[%emt 0:01:41]} 67. Ke1 {[%emt 0:00:46]} f2+ {[%emt 0:01:59]} 68. Kf1 {[%emt 0:00:10]} Kf3 {[%emt 0:01:13]} 69. Nd4+ {[%emt 0:00:07]} Kxg3 {[%emt 0:00:42]} 70. Nf5+ {[%emt 0:00:05]} Kf4 {[%emt 0:00:21]} 71. Nd4 {[%emt 0:00:20]} g3 {[%emt 0:02:07]} 72. Ne2+ {[%emt 0:00:09]} Kg4 {[%emt 0:01:02]} 73. Kg2 {[%emt 0:00:24]} a3 {[%emt 0:00:30]} 74. Nd4 {[%emt 0:00:11]} a2 {[%emt 0:01:01]} 75. Nc2 {[%emt 0:00:11]} e2 {[%emt 0:00:14]} 76. Ne1 {[%emt 0:00:45]} f1=Q# {[%emt 0:00:18]} 0-1

[Event "95th Caplin Hastings Congress"]
[Site "Hastings"]
[Date "2019.12.31"]
[Round "4.13"]
[White "Pavlov, Mikhail"]
[Black "Lalic, Bogdan"]
[Result "1/2-1/2"]
[ECO "B20"]
[WhiteElo "1955"]
[BlackElo "2414"]
[Annotator "ChessBase"]
[PlyCount "28"]
[EventDate "2019.12.28"]
[EventType "swiss"]
[EventCountry "ENG"]
[SourceTitle "playchess.com"]
[Source "ChessBase"]
[SourceQuality "1"]
[TimeControl "40/6600+30:3000+30"]

1. e4 {[%emt 0:09:33]} c5 {[%emt 0:09:54]} 2. a3 {[%emt 0:00:06]} g6 {[%emt 0:00:28]} 3. b4 {[%emt 0:00:07]} Bg7 {[%emt 0:00:09]} 4. Nc3 {[%emt 0:00:05]} d6 {[%emt 0:00:33]} 5. bxc5 {[%emt 0:07:37]} dxc5 {[%emt 0:00:16]} 6. Bc4 {[%emt 0:00:10]} Nc6 {[%emt 0:00:24]} 7. Nge2 {[%emt 0:00:47]} Nf6 {[%emt 0:00:30]} 8. Rb1 {[%emt 0:00:49]} O-O {[%emt 0:00:34]} 9. O-O {[%emt 0:00:24]} Na5 {[%emt 0:00:59]} 10. Ba2 {[%emt 0:05:49]} c4 {[%emt 0:00:09]} 11. d3 {[%emt 0:00:23]} cxd3 {[%emt 0:00:08]} 12. cxd3 {[%emt 0:00:28]} b6 {[%emt 0:00:29]} 13. d4 {[%emt 0:05:00]} Ba6 {[%emt 0:00:49]} 14. f3 {[%emt 0:05:19]} Rc8 {[%emt 0:00:34]} 1/2-1/2

[Event "95th Caplin Hastings Congress"]
[Site "Hastings"]
[Date "2019.12.31"]
[Round "4.15"]
[White "Willow, Jonah B"]
[Black "Chapman, Matt"]
[Result "1-0"]
[ECO "C48"]
[WhiteElo "2355"]
[BlackElo "1937"]
[Annotator "RC"]
[PlyCount "71"]
[EventDate "2019.12.28"]
[EventType "swiss"]
[EventCountry "ENG"]
[SourceTitle "playchess.com"]
[Source "ChessBase"]
[SourceQuality "1"]
[TimeControl "40/6600+30:3000+30"]

1. e4 {[%emt 0:09:31]} e5 {[%emt 0:09:51]} 2. Nf3 {[%emt 0:00:12]} Nc6 {[%emt 0:00:07]} 3. Nc3 {[%emt 0:00:09]} Nf6 {[%emt 0:00:08]} 4. Bb5 {[%emt 0:00:04]} Bc5 {[%emt 0:00:45]} 5. Nxe5 {[%emt 0:01:02]} Nxe5 {[%emt 0:00:10]} 6. d4 {[%emt 0:00:02]} a6 {[%emt 0:02:36]} 7. dxe5 {[%emt 0:00:21]} axb5 {[%emt 0:00:12]} 8. exf6 {[%emt 0:00:05]} Qxf6 {[%emt 0:00:09]} 9. O-O {[%emt 0:00:03]} c6 {[%emt 0:01:25]} 10. Be3 {[%emt 0:00:12]} Be7 {[%emt 0:23:17]} 11. Bd4 {[%emt 0:04:17]} Qg6 {[%emt 0:02:32]} 12. f4 {[%emt 0:00:54]} d6 {[%emt 0:04:39]} 13. f5 {[%emt 0:01:06]} Qh6 {[%emt 0:13:04]} 14. Rf3 {[%emt 0:01:52]} b4 {[%emt 0:12:39]} 15. Ne2 {[%emt 0:06:26]} c5 {[%emt 0:04:43]} 16. Rh3 {[%emt 0:01:39]} Bh4 {[%emt 0:00:48]} 17. Be3 {[%emt 0:02:11]} Qf6 {[%emt 0:00:46]} 18. Nf4 {[%emt 0:00:37]} Bg5 {[%emt 0:02:19]} 19. Nd5 {[%emt 0:00:48]} Bxe3+ {[%emt 0:00:10]} 20. Rxe3 {[%emt 0:00:05]} Qd4 {[%emt 0:01:53]} 21. Qxd4 {[%emt 0:00:58]} cxd4 {[%emt 0:00:05]} 22. Rb3 {[%emt 0:00:47]} Ra5 {[%emt 0:00:59]} 23. Rxb4 {[%emt 0:01:18]} Rc5 {[%emt 0:04:17]} 24. Rc1 {[%emt 0:03:37]} d3 {[%emt 0:02:08]} 25. c3 {[%emt 0:00:17]} g6 {[%emt 0:00:16]} 26. fxg6 {[%emt 0:01:09]} hxg6 {[%emt 0:00:14]} 27. Rd1 {[%emt 0:00:10]} f5 {[%emt 0:05:35]} 28. Rxd3 {[%emt 0:00:56]} b5 {[%emt 0:09:23]} 29. exf5 {[%emt 0:06:05]} Bxf5 {[%emt 0:00:52]} 30. Re3+ {[%emt 0:00:04]} Kd7 {[%emt 0:01:51]} 31. Rd4 {[%emt 0:00:39]} Rf8 {[%emt 0:04:15]} 32. Re7+ {[%emt 0:00:31]} Kd8 {[%emt 0:00:04]} 33. Ra7 {[%emt 0:01:07]} Be6 {[%emt 0:02:07]} 34. Nb4 {[%emt 0:01:42]} Bc4 {[%emt 0:02:56]} 35. Rxd6+ {[%emt 0:00:25]} Ke8 {[%emt 0:00:45]} 36. h3 {[%emt 0:00:20]} 1-0

[Event "95th Caplin Hastings Congress"]
[Site "Hastings"]
[Date "2019.12.31"]
[Round "4.16"]
[White "Rudd, Jack"]
[Black "Shivika Rohilla"]
[Result "1/2-1/2"]
[ECO "D37"]
[WhiteElo "2331"]
[BlackElo "1744"]
[Annotator "ChessBase"]
[PlyCount "87"]
[EventDate "2019.12.28"]
[EventType "swiss"]
[EventCountry "ENG"]
[SourceTitle "playchess.com"]
[Source "ChessBase"]
[SourceQuality "1"]
[TimeControl "40/6600+30:3000+30"]

1. d4 {[%emt 0:09:31]} d5 {[%emt 0:09:35]} 2. c4 {[%emt 0:00:06]} e6 {[%emt 0:00:04]} 3. Nc3 {[%emt 0:00:04]} a6 {[%emt 0:00:08]} 4. cxd5 {[%emt 0:00:07]} exd5 {[%emt 0:00:05]} 5. Nf3 {[%emt 0:00:06]} Nf6 {[%emt 0:00:05]} 6. Bg5 {[%emt 0:00:06]} Be6 {[%emt 0:00:08]} 7. e3 {[%emt 0:00:05]} Bd6 {[%emt 0:00:22]} 8. Bd3 {[%emt 0:00:09]} Nbd7 {[%emt 0:00:06]} 9. Qc2 {[%emt 0:00:11]} c6 {[%emt 0:04:21]} 10. O-O {[%emt 0:00:33]} h6 {[%emt 0:00:25]} 11. Bh4 {[%emt 0:00:06]} Qb8 {[%emt 0:05:18]} 12. Bg3 {[%emt 0:01:05]} O-O {[%emt 0:01:26]} 13. b4 {[%emt 0:00:20]} Bxg3 {[%emt 0:02:21]} 14. hxg3 {[%emt 0:01:35]} Qd6 {[%emt 0:00:30]} 15. Rab1 {[%emt 0:00:10]} b5 {[%emt 0:11:10]} 16. a4 {[%emt 0:00:37]} Nb6 {[%emt 0:09:36]} 17. a5 {[%emt 0:04:01]} Nc4 {[%emt 0:00:29]} 18. Bxc4 {[%emt 0:00:05]} dxc4 {[%emt 0:07:12]} 19. Ne5 {[%emt 0:01:35]} Qc7 {[%emt 0:10:39]} 20. Rb2 {[%emt 0:00:54]} Ng4 {[%emt 0:06:47]} 21. Nxg4 {[%emt 0:01:27]} Bxg4 {[%emt 0:00:08]} 22. Ne4 {[%emt 0:00:57]} Rad8 {[%emt 0:05:59]} 23. Nc5 {[%emt 0:00:53]} Bc8 {[%emt 0:00:46]} 24. Qc3 {[%emt 0:00:14]} f5 {[%emt 0:02:41]} 25. Re1 {[%emt 0:00:48]} Rfe8 {[%emt 0:01:36]} 26. Ree2 {[%emt 0:01:00]} Rd6 {[%emt 0:04:42]} 27. Rbd2 {[%emt 0:04:02]} Red8 {[%emt 0:01:48]} 28. f4 {[%emt 0:03:12]} Rg6 {[%emt 0:02:18]} 29. e4 {[%emt 0:00:24]} fxe4 {[%emt 0:03:56]} 30. Rxe4 {[%emt 0:00:09]} Rf6 {[%emt 0:01:49]} 31. Rde2 {[%emt 0:00:51]} Rf7 {[%emt 0:03:27]} 32. Kf2 {[%emt 0:01:57]} Rdf8 {[%emt 0:05:07]} 33. Ke1 {[%emt 0:03:49]} Bg4 {[%emt 0:05:05]} 34. R2e3 {[%emt 0:00:29]} Qc8 {[%emt 0:01:28]} 35. Kd2 {[%emt 0:00:30]} g5 {[%emt 0:02:22]} 36. fxg5 {[%emt 0:00:57]} Rf2+ {[%emt 0:00:49]} 37. Kc1 {[%emt 0:00:14]} Bf5 {[%emt 0:00:43]} 38. d5 {[%emt 0:03:00]} Bxe4 {[%emt 0:01:14]} 39. Nxe4 {[%emt 0:00:17]} Rf1+ {[%emt 0:00:42]} 40. Kb2 {[%emt 0:00:07]} hxg5 {[%emt 0:03:18]} 41. d6 {[%emt 0:54:12]} Qg4 {[%emt 0:52:08]} 42. Qe5 {[%emt 0:03:51]} Qd1 {[%emt 0:01:11]} 43. Qxg5+ {[%emt 0:00:12]} Kh8 {[%emt 0:00:24]} 44. Qh6+ {[%emt 0:01:42]} 1/2-1/2

[Event "95th Caplin Hastings Congress"]
[Site "Hastings"]
[Date "2019.12.31"]
[Round "4.17"]
[White "Hebden, Mark L"]
[Black "Ryzhkov, Vjacheslav"]
[Result "1-0"]
[ECO "D00"]
[WhiteElo "2433"]
[BlackElo "2134"]
[Annotator "ChessBase"]
[PlyCount "61"]
[EventDate "2019.12.28"]
[EventType "swiss"]
[EventCountry "ENG"]
[SourceTitle "playchess.com"]
[Source "ChessBase"]
[SourceQuality "1"]
[TimeControl "40/6600+30:3000+30"]

1. d4 {[%emt 0:09:45]} e6 {[%emt 0:09:54]} 2. Nc3 {[%emt 0:01:08]} d5 {[%emt 0:00:33]} 3. Bf4 {[%emt 0:01:54]} Nf6 {[%emt 0:01:17]} 4. e3 {[%emt 0:05:02]} Bd6 {[%emt 0:04:19]} 5. Nf3 {[%emt 0:00:00]} Bxf4 {[%emt 0:04:21]} 6. exf4 {[%emt 0:00:00]} O-O {[%emt 0:01:59]} 7. Bd3 {[%emt 0:00:00]} Nbd7 {[%emt 0:03:58]} 8. Ne2 {[%emt 0:07:25]} c5 {[%emt 0:02:16]} 9. c3 {[%emt 0:00:00]} cxd4 {[%emt 0:02:33]} 10. cxd4 {[%emt 0:00:00]} Ne4 {[%emt 0:03:31]} 11. O-O {[%emt 0:00:00]} Ndf6 {[%emt 0:07:25]} 12. Ne5 {[%emt 0:03:48]} Nd7 {[%emt 0:05:41]} 13. Rc1 {[%emt 0:03:01]} Qa5 {[%emt 0:07:11]} 14. a3 {[%emt 0:08:15]} Nb6 {[%emt 0:07:33]} 15. Nc3 {[%emt 0:00:03]} f6 {[%emt 0:03:07]} 16. Nf3 {[%emt 0:02:27]} Nxc3 {[%emt 0:03:26]} 17. Rxc3 {[%emt 0:00:34]} Na4 {[%emt 0:00:21]} 18. Rb3 {[%emt 0:06:50]} Qc7 {[%emt 0:01:29]} 19. Qb1 {[%emt 0:03:18]} Qxf4 {[%emt 0:03:25]} 20. Bxh7+ {[%emt 0:00:51]} Kh8 {[%emt 0:00:11]} 21. Bg6 {[%emt 0:01:49]} Kg8 {[%emt 0:14:50]} 22. Re1 {[%emt 0:02:40]} Nb6 {[%emt 0:01:25]} 23. Bh7+ {[%emt 0:09:44]} Kh8 {[%emt 0:00:16]} 24. Bc2 {[%emt 0:01:09]} g5 {[%emt 0:06:23]} 25. Qd1 {[%emt 0:05:16]} Rf7 {[%emt 0:02:03]} 26. Nxg5 {[%emt 0:06:05]} fxg5 {[%emt 0:01:35]} 27. Qh5+ {[%emt 0:00:55]} Kg8 {[%emt 0:00:50]} 28. Rf3 {[%emt 0:00:37]} Qc7 {[%emt 0:00:40]} 29. Qg6+ {[%emt 0:00:20]} Kf8 {[%emt 0:00:25]} 30. Qh6+ {[%emt 0:00:15]} Kg8 {[%emt 0:02:01]} 31. Bh7+ {[%emt 0:00:47]} 1-0

[Event "95th Caplin Hastings Congress"]
[Site "Hastings"]
[Date "2019.12.31"]
[Round "4.18"]
[White "Cherniaev, Alexander"]
[Black "Thompson, Ian D"]
[Result "1-0"]
[ECO "A01"]
[WhiteElo "2419"]
[BlackElo "2141"]
[Annotator "RC"]
[PlyCount "85"]
[EventDate "2019.12.28"]
[EventType "swiss"]
[EventCountry "ENG"]
[SourceTitle "playchess.com"]
[Source "ChessBase"]
[SourceQuality "1"]
[TimeControl "40/6600+30:3000+30"]

1. b3 {[%emt 0:12:05]} e5 {[%emt 0:10:08]} 2. Bb2 {[%emt 0:00:18]} Nc6 {[%emt 0:00:07]} 3. e3 {[%emt 0:00:52]} Nf6 {[%emt 0:00:06]} 4. Bb5 {[%emt 0:01:15]} Bd6 {[%emt 0:00:10]} 5. Na3 {[%emt 0:02:02]} Na5 {[%emt 0:00:08]} 6. Be2 {[%emt 0:02:48]} c6 {[%emt 0:06:47]} 7. Nf3 {[%emt 0:08:23]} Qe7 {[%emt 0:01:19]} 8. Nb1 {[%emt 0:00:04]} b6 {[%emt 0:05:47]} 9. d4 {[%emt 0:03:33]} e4 {[%emt 0:06:11]} 10. Ne5 {[%emt 0:03:47]} Bb8 {[%emt 0:04:05]} 11. a4 {[%emt 0:09:06]} d6 {[%emt 0:03:20]} 12. Nc4 {[%emt 0:13:52]} Nxc4 {[%emt 0:02:58]} 13. bxc4 {[%emt 0:00:01]} d5 {[%emt 0:02:17]} 14. a5 {[%emt 0:04:24]} bxa5 {[%emt 0:02:35]} 15. Ba3 {[%emt 0:02:11]} Bd6 {[%emt 0:02:54]} 16. Bxd6 {[%emt 0:00:06]} Qxd6 {[%emt 0:00:05]} 17. c5 {[%emt 0:00:54]} Qc7 {[%emt 0:01:32]} 18. Nd2 {[%emt 0:03:32]} O-O {[%emt 0:02:09]} 19. Nb3 {[%emt 0:01:31]} Ne8 {[%emt 0:05:18]} 20. Qd2 {[%emt 0:02:06]} f5 {[%emt 0:01:19]} 21. Qxa5 {[%emt 0:00:25]} Qf7 {[%emt 0:02:30]} 22. g3 {[%emt 0:00:08]} g5 {[%emt 0:00:55]} 23. Kd2 {[%emt 0:08:10]} f4 {[%emt 0:05:29]} 24. h4 {[%emt 0:02:43]} f3 {[%emt 0:06:51]} 25. Ba6 {[%emt 0:00:16]} gxh4 {[%emt 0:00:51]} 26. Rxh4 {[%emt 0:01:36]} Nf6 {[%emt 0:03:32]} 27. Bxc8 {[%emt 0:06:20]} Rfxc8 {[%emt 0:03:27]} 28. Qa6 {[%emt 0:01:04]} Rc7 {[%emt 0:01:42]} 29. Qf1 {[%emt 0:01:20]} Kh8 {[%emt 0:12:50]} 30. Qh3 {[%emt 0:01:11]} Rg8 {[%emt 0:03:13]} 31. Ra6 {[%emt 0:02:15]} Nd7 {[%emt 0:00:49]} 32. Rh5 {[%emt 0:02:17]} Nf6 {[%emt 0:01:28]} 33. Rh4 {[%emt 0:00:52]} Nd7 {[%emt 0:00:06]} 34. Ra1 {[%emt 0:05:36]} Rg6 {[%emt 0:03:42]} 35. Na5 {[%emt 0:05:11]} Rg8 {[%emt 0:04:58]} 36. Rb1 {[%emt 0:00:00]} Nf6 {[%emt 0:08:03]} 37. Rf4 {[%emt 0:06:12]} Qg7 {[%emt 0:02:08]} 38. Qe6 {[%emt 0:03:23]} Ng4 {[%emt 0:01:16]} 39. Nxc6 {[%emt 0:00:25]} Nxf2 {[%emt 0:03:07]} 40. Ne5 {[%emt 0:00:18]} Rf8 {[%emt 0:05:07]} 41. Ng6+ {[%emt 0:00:43]} hxg6 {[%emt 0:48:00]} 42. Rh4+ {[%emt 0:00:20]} Qh7 {[%emt 0:00:46]} 43. Rf1 {[%emt 0:01:44]} 1-0

[Event "95th Caplin Hastings Congress"]
[Site "Hastings"]
[Date "2019.12.31"]
[Round "4.20"]
[White "Vaishali R"]
[Black "Price, Gwilym"]
[Result "1-0"]
[ECO "B40"]
[WhiteElo "2376"]
[BlackElo "2110"]
[Annotator "ChessBase"]
[PlyCount "79"]
[EventDate "2019.12.28"]
[EventType "swiss"]
[EventCountry "ENG"]
[SourceTitle "playchess.com"]
[Source "ChessBase"]
[SourceQuality "1"]
[TimeControl "40/6600+30:3000+30"]

1. e4 {[%emt 0:10:11]} c5 {[%emt 0:09:35]} 2. Nf3 {[%emt 0:00:06]} e6 {[%emt 0:00:04]} 3. d4 {[%emt 0:00:50]} cxd4 {[%emt 0:00:05]} 4. Nxd4 {[%emt 0:00:05]} Nf6 {[%emt 0:00:05]} 5. Nc3 {[%emt 0:00:05]} Nc6 {[%emt 0:00:04]} 6. Nxc6 {[%emt 0:02:35]} bxc6 {[%emt 0:00:05]} 7. Bd3 {[%emt 0:00:05]} d5 {[%emt 0:00:56]} 8. O-O {[%emt 0:00:05]} Be7 {[%emt 0:02:45]} 9. Qf3 {[%emt 0:00:07]} O-O {[%emt 0:05:58]} 10. Re1 {[%emt 0:00:12]} a5 {[%emt 0:08:42]} 11. exd5 {[%emt 0:19:39]} exd5 {[%emt 0:12:26]} 12. Bf4 {[%emt 0:07:18]} Re8 {[%emt 0:04:04]} 13. h3 {[%emt 0:04:12]} a4 {[%emt 0:06:20]} 14. Ne2 {[%emt 0:04:15]} Qb6 {[%emt 0:08:02]} 15. Ng3 {[%emt 0:01:29]} Ba6 {[%emt 0:03:05]} 16. Bxa6 {[%emt 0:16:51]} Qxa6 {[%emt 0:02:01]} 17. Nf5 {[%emt 0:00:22]} Bf8 {[%emt 0:01:41]} 18. Be5 {[%emt 0:01:25]} c5 {[%emt 0:17:50]} 19. Nh6+ {[%emt 0:01:32]} gxh6 {[%emt 0:00:18]} 20. Bxf6 {[%emt 0:00:07]} Bg7 {[%emt 0:00:06]} 21. Bxg7 {[%emt 0:00:45]} Kxg7 {[%emt 0:00:06]} 22. Qxd5 {[%emt 0:00:24]} Qb6 {[%emt 0:01:46]} 23. b3 {[%emt 0:06:39]} axb3 {[%emt 0:02:00]} 24. Qxb3 {[%emt 0:01:02]} Qxb3 {[%emt 0:04:59]} 25. axb3 {[%emt 0:00:07]} Ra2 {[%emt 0:00:10]} 26. Rxe8 {[%emt 0:02:05]} Rxa1+ {[%emt 0:00:06]} 27. Kh2 {[%emt 0:00:04]} Rc1 {[%emt 0:01:10]} 28. Re2 {[%emt 0:00:31]} f5 {[%emt 0:03:37]} 29. Kg3 {[%emt 0:00:27]} Kf6 {[%emt 0:00:11]} 30. Kf4 {[%emt 0:00:27]} Rd1 {[%emt 0:00:57]} 31. Ke3 {[%emt 0:02:50]} Ke6 {[%emt 0:02:00]} 32. Rd2 {[%emt 0:01:10]} Re1+ {[%emt 0:00:36]} 33. Kd3 {[%emt 0:00:51]} Kd6 {[%emt 0:00:52]} 34. Kc4+ {[%emt 0:02:24]} Kc6 {[%emt 0:00:05]} 35. f3 {[%emt 0:00:41]} Re5 {[%emt 0:00:38]} 36. c3 {[%emt 0:00:21]} f4 {[%emt 0:01:15]} 37. Ra2 {[%emt 0:00:28]} Kb6 {[%emt 0:00:30]} 38. Ra8 {[%emt 0:00:37]} Rg5 {[%emt 0:00:26]} 39. Rf8 {[%emt 0:02:01]} Rxg2 {[%emt 0:00:15]} 40. Rf6+ {[%emt 0:00:05]} 1-0

[Event "95th Caplin Hastings Congress"]
[Site "Hastings"]
[Date "2019.12.31"]
[Round "4.21"]
[White "Comellas Blanchart, Jordi"]
[Black "Petrov, Vladimir Sergeev"]
[Result "1/2-1/2"]
[ECO "B52"]
[WhiteElo "2064"]
[BlackElo "2355"]
[Annotator "ChessBase"]
[PlyCount "58"]
[EventDate "2019.12.28"]
[EventType "swiss"]
[EventCountry "ENG"]
[SourceTitle "playchess.com"]
[Source "ChessBase"]
[SourceQuality "1"]
[TimeControl "40/6600+30:3000+30"]

1. e4 {[%emt 0:05:47]} c5 {[%emt 0:15:19]} 2. Nf3 {[%emt 0:03:48]} d6 {[%emt 0:00:07]} 3. Bb5+ {[%emt 0:01:15]} Bd7 {[%emt 0:01:14]} 4. Bxd7+ Qxd7 5. c4 {[%emt 0:00:00]} Nf6 {[%emt 0:02:04]} 6. Nc3 {[%emt 0:00:00]} g6 {[%emt 0:00:04]} 7. d4 {[%emt 0:00:00]} cxd4 {[%emt 0:00:11]} 8. Nxd4 {[%emt 0:00:00]} Bg7 {[%emt 0:00:06]} 9. f3 {[%emt 0:00:19]} O-O {[%emt 0:00:40]} 10. Be3 {[%emt 0:00:27]} Nc6 {[%emt 0:07:47]} 11. O-O {[%emt 0:00:12]} e6 {[%emt 0:00:09]} 12. Qd2 {[%emt 0:07:28]} Rac8 13. b3 {[%emt 0:01:29]} Rfd8 14. Rad1 {[%emt 0:09:06]} a6 {[%emt 0:01:45]} 15. Nde2 {[%emt 0:00:00]} Qe7 {[%emt 0:19:48]} 16. Bg5 {[%emt 0:11:23]} b5 {[%emt 0:12:16]} 17. cxb5 {[%emt 0:08:56]} axb5 {[%emt 0:18:41]} 18. a4 {[%emt 0:29:59]} bxa4 {[%emt 0:00:13]} 19. Nxa4 {[%emt 0:00:30]} Qb7 {[%emt 0:00:30]} 20. Qe3 {[%emt 0:06:53]} h6 {[%emt 0:06:12]} 21. Bxh6 {[%emt 0:01:40]} Bxh6 {[%emt 0:00:06]} 22. Qxh6 {[%emt 0:00:10]} Qxb3 {[%emt 0:00:04]} 23. Nac3 {[%emt 0:05:47]} Ne5 {[%emt 0:00:17]} 24. f4 {[%emt 0:04:32]} Neg4 {[%emt 0:01:57]} 25. Qh4 {[%emt 0:01:43]} Rxc3 {[%emt 0:25:25]} 26. Nxc3 {[%emt 0:01:03]} Qxc3 {[%emt 0:00:04]} 27. e5 {[%emt 0:00:39]} Rb8 {[%emt 0:06:11]} 28. exf6 {[%emt 0:03:32]} Nxf6 {[%emt 0:00:06]} 29. f5 {[%emt 0:07:01]} Rb4 {[%emt 0:02:34]} 1/2-1/2